[Event "46th GER-ch Rapid 2020"]
[Site "Plochingen"]
[Date "2020.09.19"]
[Round "3.6"]
[White "Nguyen, Alex Dac-Vuong"]
[Black "Muranyi, Karl-Jasmin"]
[Result "1/2-1/2"]
[ECO "B14"]
[WhiteElo "2343"]
[BlackElo "2331"]
[Annotator "ChessBase"]
[PlyCount "143"]
[EventDate "2020.09.19"]
[EventType "swiss"]
[EventCountry "GER"]
[SourceTitle "playchess.com"]
[Source "ChessBase"]
[SourceQuality "1"]
[TimeControl "900+10"]

1. e4 {[%emt 0:00:00]} c6 {[%emt 0:00:00]} 2. d4 {[%emt 0:00:00]} d5 {[%emt 0:00:00]} 3. exd5 {[%emt 0:00:00]} cxd5 {[%emt 0:00:00]} 4. c4 {[%emt 0:00:00]} Nf6 {[%emt 0:00:00]} 5. Nc3 {[%emt 0:00:02]} e6 {[%emt 0:00:00]} 6. Nf3 {[%emt 0:00:06]} Nc6 {[%emt 0:00:00]} 7. Bg5 {[%emt 0:00:04]} Be7 {[%emt 0:00:02]} 8. Rc1 {[%emt 0:00:02]} O-O {[%emt 0:00:25]} 9. c5 {[%emt 0:00:10]} Ne4 {[%emt 0:00:09]} 10. Bxe7 {[%emt 0:00:03]} Qxe7 {[%emt 0:00:02]} 11. Bb5 {[%emt 0:00:03]} Nxc3 {[%emt 0:00:42]} 12. bxc3 {[%emt 0:02:19]} Bd7 {[%emt 0:00:15]} 13. Bxc6 {[%emt 0:00:04]} Bxc6 {[%emt 0:00:06]} 14. O-O {[%emt 0:00:04]} b6 {[%emt 0:00:09]} 15. cxb6 {[%emt 0:00:31]} axb6 {[%emt 0:00:02]} 16. Qb3 {[%emt 0:00:04]} Rfb8 {[%emt 0:00:16]} 17. Ne5 {[%emt 0:00:08]} Be8 {[%emt 0:00:16]} 18. c4 {[%emt 0:01:06]} f6 {[%emt 0:00:58]} 19. Nf3 {[%emt 0:01:17]} Ra3 {[%emt 0:01:14]} 20. Qb2 {[%emt 0:00:47]} Qa7 {[%emt 0:00:09]} 21. cxd5 {[%emt 0:01:30]} exd5 {[%emt 0:00:02]} 22. Rc2 {[%emt 0:01:15]} Bg6 {[%emt 0:00:20]} 23. Rc7 {[%emt 0:01:08]} Qxc7 {[%emt 0:04:52]} 24. Qxa3 {[%emt 0:00:02]} Rc8 {[%emt 0:00:00]} 25. Qb3 {[%emt 0:02:20]} Qc6 {[%emt 0:01:21]} 26. Re1 {[%emt 0:00:27]} b5 {[%emt 0:00:14]} 27. h3 {[%emt 0:00:54]} Qc4 {[%emt 0:00:45]} 28. Qa3 {[%emt 0:02:06]} b4 {[%emt 0:02:38]} 29. Qa7 {[%emt 0:00:17]} Qc7 {[%emt 0:01:04]} 30. Re7 {[%emt 0:01:02]} Qxa7 {[%emt 0:00:06]} 31. Rxa7 {[%emt 0:00:01]} Rc1+ {[%emt 0:00:36]} 32. Kh2 {[%emt 0:00:02]} Be4 {[%emt 0:00:01]} 33. Nd2 {[%emt 0:01:09]} Rd1 {[%emt 0:00:31]} 34. Nb3 {[%emt 0:00:33]} Bc2 {[%emt 0:00:13]} 35. Nc5 {[%emt 0:00:01]} Rxd4 {[%emt 0:01:02]} 36. Rxg7+ {[%emt 0:00:24]} Kxg7 {[%emt 0:00:01]} 37. Ne6+ {[%emt 0:00:01]} Kf7 {[%emt 0:00:13]} 38. Nxd4 {[%emt 0:00:01]} Bb1 {[%emt 0:00:01]} 39. Nc6 {[%emt 0:00:03]} d4 {[%emt 0:00:19]} 40. Kg3 {[%emt 0:00:27]} Bxa2 {[%emt 0:00:58]} 41. Nxb4 {[%emt 0:00:04]} Bc4 {[%emt 0:00:05]} 42. Kf4 {[%emt 0:00:39]} Bf1 {[%emt 0:00:05]} 43. Ke4 {[%emt 0:00:02]} Bxg2+ {[%emt 0:00:03]} 44. Kxd4 {[%emt 0:00:01]} Bxh3 {[%emt 0:00:01]} 45. Nd3 {[%emt 0:00:06]} Bc8 {[%emt 0:00:14]} 46. Nf4 {[%emt 0:00:18]} Kg7 {[%emt 0:00:16]} 47. Ke3 {[%emt 0:00:11]} Kh6 {[%emt 0:00:17]} 48. Kf3 {[%emt 0:00:02]} Kg5 {[%emt 0:00:08]} 49. Kg3 {[%emt 0:00:02]} h5 {[%emt 0:00:08]} 50. Ng2 {[%emt 0:00:02]} Bb7 {[%emt 0:00:37]} 51. Nh4 {[%emt 0:00:19]} Be4 {[%emt 0:00:14]} 52. f3 {[%emt 0:00:11]} Bb1 {[%emt 0:00:07]} 53. f4+ {[%emt 0:00:09]} Kh6 {[%emt 0:00:01]} 54. Kf3 {[%emt 0:00:03]} Kg7 {[%emt 0:00:10]} 55. Ke3 {[%emt 0:00:07]} Kf7 {[%emt 0:00:02]} 56. Nf3 {[%emt 0:01:14]} Bf5 {[%emt 0:00:17]} 57. Nh4 {[%emt 0:00:03]} Ke6 {[%emt 0:00:11]} 58. Nf3 {[%emt 0:00:14]} Kd5 {[%emt 0:00:13]} 59. Nh4 {[%emt 0:00:18]} Bg4 {[%emt 0:00:37]} 60. Ng6 {[%emt 0:00:03]} Kc4 {[%emt 0:00:25]} 61. Nh4 {[%emt 0:00:14]} Kc3 {[%emt 0:00:07]} 62. Ng6 {[%emt 0:00:10]} Kc2 {[%emt 0:00:03]} 63. Nh4 {[%emt 0:00:12]} Kd1 {[%emt 0:00:01]} 64. Ng2 {[%emt 0:00:01]} Bh3 {[%emt 0:00:15]} 65. Nh4 {[%emt 0:00:01]} Ke1 {[%emt 0:00:03]} 66. Kf3 {[%emt 0:00:03]} Kd2 {[%emt 0:00:05]} 67. Ng6 {[%emt 0:00:30]} Bg4+ {[%emt 0:00:10]} 68. Kf2 {[%emt 0:00:05]} Kd3 {[%emt 0:00:11]} 69. Nh4 {[%emt 0:00:08]} Ke4 {[%emt 0:00:10]} 70. Kg3 {[%emt 0:00:01]} f5 {[%emt 0:00:32]} 71. Ng6 {[%emt 0:00:13]} Ke3 {[%emt 0:00:08]} 72. Nh4 {[%emt 0:00:05]} 1/2-1/2

[Event "46th GER-ch Rapid 2020"]
[Site "Plochingen"]
[Date "2020.09.19"]
[Round "3.7"]
[White "Reichmann, Hendrik"]
[Black "Neukirchner, Pascal"]
[Result "0-1"]
[ECO "D00"]
[WhiteElo "2348"]
[BlackElo "2259"]
[Annotator "ChessBase"]
[PlyCount "44"]
[EventDate "2020.09.19"]
[EventType "swiss"]
[EventCountry "GER"]
[SourceTitle "playchess.com"]
[Source "ChessBase"]
[SourceQuality "1"]
[TimeControl "900+10"]

1. d4 {[%emt 0:00:00]} Nf6 {[%emt 0:00:00]} 2. Bf4 {[%emt 0:00:01]} c5 {[%emt 0:00:00]} 3. e3 {[%emt 0:00:05]} d5 {[%emt 0:00:00]} 4. c3 {[%emt 0:00:10]} Nc6 {[%emt 0:00:03]} 5. Nd2 {[%emt 0:00:02]} Bf5 {[%emt 0:00:38]} 6. Qb3 {[%emt 0:00:45]} Qc8 {[%emt 0:01:28]} 7. Ngf3 {[%emt 0:00:16]} e6 {[%emt 0:01:12]} 8. Nh4 {[%emt 0:00:52]} Be4 {[%emt 0:01:04]} 9. f3 {[%emt 0:03:48]} Bg6 {[%emt 0:00:02]} 10. g4 {[%emt 0:01:27]} Be7 {[%emt 0:00:35]} 11. Nxg6 {[%emt 0:01:56]} hxg6 {[%emt 0:00:02]} 12. Bg2 {[%emt 0:01:31]} Qd7 {[%emt 0:03:11]} 13. Rd1 {[%emt 0:03:28]} cxd4 {[%emt 0:02:25]} 14. exd4 {[%emt 0:00:44]} Bd6 {[%emt 0:00:03]} 15. Bxd6 {[%emt 0:00:08]} Qxd6 {[%emt 0:00:01]} 16. Nf1 {[%emt 0:00:11]} e5 {[%emt 0:03:03]} 17. dxe5 {[%emt 0:00:26]} Qxe5+ {[%emt 0:00:10]} 18. Kf2 {[%emt 0:00:02]} O-O {[%emt 0:00:38]} 19. Qxb7 {[%emt 0:01:10]} Rfe8 {[%emt 0:00:18]} 20. Qa6 {[%emt 0:00:24]} Rab8 {[%emt 0:00:24]} 21. Rd2 {[%emt 0:00:17]} Qf4 {[%emt 0:00:55]} 22. Qd3 {[%emt 0:00:41]} Ne4+ {[%emt 0:00:26]} 0-1

[Event "46th GER-ch Rapid 2020"]
[Site "Plochingen"]
[Date "2020.09.19"]
[Round "3.9"]
[White "Braeuning, Rudolf Wilhelm"]
[Black "Siebrecht, Sebastian"]
[Result "1-0"]
[ECO "B22"]
[WhiteElo "2268"]
[BlackElo "2418"]
[Annotator "ChessBase"]
[PlyCount "121"]
[EventDate "2020.09.19"]
[EventType "swiss"]
[EventCountry "GER"]
[SourceTitle "playchess.com"]
[Source "ChessBase"]
[SourceQuality "1"]
[TimeControl "900+10"]

1. e4 {[%emt 0:00:00]} c5 {[%emt 0:00:00]} 2. c3 {[%emt 0:00:00]} Nf6 {[%emt 0:00:00]} 3. e5 {[%emt 0:00:00]} Nd5 {[%emt 0:00:00]} 4. d4 {[%emt 0:00:00]} cxd4 {[%emt 0:00:00]} 5. Nf3 {[%emt 0:00:00]} Nc6 {[%emt 0:00:00]} 6. Bc4 {[%emt 0:00:00]} e6 {[%emt 0:00:00]} 7. cxd4 {[%emt 0:00:01]} d6 {[%emt 0:00:00]} 8. O-O {[%emt 0:00:03]} Be7 {[%emt 0:00:01]} 9. Re1 {[%emt 0:00:01]} O-O {[%emt 0:00:02]} 10. exd6 {[%emt 0:00:02]} Qxd6 {[%emt 0:00:03]} 11. Nc3 {[%emt 0:00:02]} Nf6 {[%emt 0:01:08]} 12. a3 {[%emt 0:00:21]} a6 {[%emt 0:00:00]} 13. Ba2 {[%emt 0:00:18]} Rd8 {[%emt 0:00:02]} 14. Be3 {[%emt 0:00:24]} Ng4 {[%emt 0:00:30]} 15. d5 {[%emt 0:01:44]} Nxe3 {[%emt 0:00:03]} 16. Rxe3 {[%emt 0:00:07]} exd5 {[%emt 0:00:10]} 17. Nxd5 {[%emt 0:03:19]} Bf8 {[%emt 0:00:02]} 18. Ng5 {[%emt 0:04:51]} Ne5 {[%emt 0:06:44]} 19. Qh5 {[%emt 0:02:44]} h6 {[%emt 0:01:09]} 20. Rxe5 {[%emt 0:02:21]} g6 {[%emt 0:03:46]} 21. Nxf7 {[%emt 0:01:07]} gxh5 {[%emt 0:00:03]} 22. Nxd6 {[%emt 0:00:08]} Bxd6 {[%emt 0:00:02]} 23. Rxh5 {[%emt 0:00:06]} Kg7 {[%emt 0:00:06]} 24. Ne3 {[%emt 0:00:22]} Kg6 {[%emt 0:00:37]} 25. Rd5 {[%emt 0:00:46]} Be6 {[%emt 0:00:02]} 26. Rdd1 {[%emt 0:00:07]} Bxa2 {[%emt 0:00:32]} 27. Rxa2 {[%emt 0:00:01]} Be5 {[%emt 0:00:02]} 28. Kf1 {[%emt 0:00:09]} h5 {[%emt 0:00:24]} 29. h3 {[%emt 0:00:05]} Rxd1+ {[%emt 0:00:50]} 30. Nxd1 {[%emt 0:00:01]} Rc8 {[%emt 0:00:01]} 31. b3 {[%emt 0:00:08]} b5 {[%emt 0:00:18]} 32. Ke2 {[%emt 0:00:09]} Kf5 {[%emt 0:00:32]} 33. Ne3+ {[%emt 0:00:15]} Ke6 {[%emt 0:00:02]} 34. Rc2 {[%emt 0:00:02]} Ra8 {[%emt 0:00:34]} 35. Rc6+ {[%emt 0:00:03]} Bd6 {[%emt 0:00:01]} 36. a4 {[%emt 0:00:17]} Kd7 {[%emt 0:00:14]} 37. Rc2 {[%emt 0:00:10]} Rb8 {[%emt 0:00:25]} 38. Kd3 {[%emt 0:00:12]} bxa4 {[%emt 0:01:18]} 39. bxa4 {[%emt 0:00:02]} Rb3+ {[%emt 0:00:10]} 40. Rc3 {[%emt 0:00:23]} Rb2 {[%emt 0:00:01]} 41. Rc2 {[%emt 0:00:16]} Rb3+ {[%emt 0:00:01]} 42. Kd4 {[%emt 0:00:06]} Rb4+ {[%emt 0:00:04]} 43. Rc4 {[%emt 0:00:10]} Rb2 {[%emt 0:00:04]} 44. Nc2 {[%emt 0:00:09]} Ke6 {[%emt 0:00:15]} 45. Kd3 {[%emt 0:00:23]} a5 {[%emt 0:00:31]} 46. g4 {[%emt 0:00:19]} hxg4 {[%emt 0:00:02]} 47. hxg4 {[%emt 0:00:00]} Kd5 {[%emt 0:00:48]} 48. Ne3+ {[%emt 0:00:10]} Ke6 {[%emt 0:00:01]} 49. f4 {[%emt 0:00:04]} Rb3+ {[%emt 0:00:07]} 50. Ke4 {[%emt 0:00:05]} Bb4 {[%emt 0:00:59]} 51. g5 {[%emt 0:00:15]} Ra3 {[%emt 0:00:21]} 52. f5+ {[%emt 0:00:01]} Kd6 {[%emt 0:00:01]} 53. f6 {[%emt 0:00:14]} Rxa4 {[%emt 0:00:03]} 54. g6 {[%emt 0:00:17]} Ke6 {[%emt 0:00:28]} 55. Rc6+ {[%emt 0:00:03]} Kd7 {[%emt 0:00:01]} 56. Kd5 {[%emt 0:00:05]} Bd2 {[%emt 0:00:24]} 57. Nc4 {[%emt 0:00:17]} Bh6 {[%emt 0:00:14]} 58. Ne5+ {[%emt 0:00:05]} Kd8 {[%emt 0:00:02]} 59. Nf7+ {[%emt 0:00:04]} Kd7 {[%emt 0:00:01]} 60. Nxh6 {[%emt 0:00:03]} Rf4 {[%emt 0:00:03]} 61. Rd6+ {[%emt 0:00:08]} 1-0

[Event "46th GER-ch Rapid 2020"]
[Site "Plochingen"]
[Date "2020.09.19"]
[Round "3.10"]
[White "Hirneise, Jens"]
[Black "Schulz, Karsten"]
[Result "1-0"]
[ECO "B06"]
[WhiteElo "2289"]
[BlackElo "2294"]
[Annotator "ChessBase"]
[PlyCount "57"]
[EventDate "2020.09.19"]
[EventType "swiss"]
[EventCountry "GER"]
[SourceTitle "playchess.com"]
[Source "ChessBase"]
[SourceQuality "1"]
[TimeControl "900+10"]

1. e4 {[%emt 0:00:00]} g6 {[%emt 0:00:00]} 2. d4 {[%emt 0:00:00]} Bg7 {[%emt 0:00:00]} 3. Nc3 {[%emt 0:00:00]} d6 {[%emt 0:00:00]} 4. Be3 {[%emt 0:00:00]} a6 {[%emt 0:00:00]} 5. f4 {[%emt 0:00:00]} b5 {[%emt 0:00:43]} 6. Bd3 {[%emt 0:00:04]} Nd7 {[%emt 0:00:11]} 7. e5 {[%emt 0:00:26]} Bb7 {[%emt 0:01:18]} 8. Be4 {[%emt 0:00:42]} Bxe4 {[%emt 0:00:12]} 9. Nxe4 {[%emt 0:00:02]} Nh6 {[%emt 0:00:46]} 10. Nf3 {[%emt 0:00:13]} c5 {[%emt 0:01:45]} 11. dxc5 {[%emt 0:00:34]} Nf5 {[%emt 0:01:16]} 12. Qe2 {[%emt 0:01:35]} dxe5 {[%emt 0:01:56]} 13. O-O-O {[%emt 0:04:05]} Qc7 {[%emt 0:00:55]} 14. fxe5 {[%emt 0:00:20]} Nxe5 {[%emt 0:01:19]} 15. Bf4 {[%emt 0:00:45]} Nd3+ {[%emt 0:00:38]} 16. Rxd3 {[%emt 0:00:47]} Qxf4+ {[%emt 0:00:13]} 17. Kb1 {[%emt 0:00:13]} O-O {[%emt 0:00:32]} 18. Rhd1 {[%emt 0:00:06]} Qc7 {[%emt 0:01:11]} 19. g4 {[%emt 0:01:43]} Nh6 {[%emt 0:00:31]} 20. h3 {[%emt 0:00:22]} Rad8 {[%emt 0:00:55]} 21. Rxd8 {[%emt 0:00:58]} Rxd8 {[%emt 0:00:02]} 22. Rxd8+ {[%emt 0:00:11]} Qxd8 {[%emt 0:00:01]} 23. Qd3 {[%emt 0:00:33]} Qc7 {[%emt 0:00:36]} 24. a3 {[%emt 0:00:26]} Bf8 {[%emt 0:00:59]} 25. Qd5 {[%emt 0:01:01]} e6 {[%emt 0:01:20]} 26. Qe5 {[%emt 0:00:25]} Qxe5 {[%emt 0:01:47]} 27. Nxe5 {[%emt 0:00:03]} Bg7 {[%emt 0:00:09]} 28. Nd7 {[%emt 0:00:19]} f5 {[%emt 0:00:16]} 29. c6 {[%emt 0:00:14]} 1-0

[Event "46th GER-ch Rapid 2020"]
[Site "Plochingen"]
[Date "2020.09.19"]
[Round "4.1"]
[White "Kvetny, Mark"]
[Black "Rosner, Jonas"]
[Result "1/2-1/2"]
[ECO "D02"]
[WhiteElo "2427"]
[BlackElo "2433"]
[Annotator "ChessBase"]
[PlyCount "93"]
[EventDate "2020.09.19"]
[EventType "swiss"]
[EventCountry "GER"]
[SourceTitle "playchess.com"]
[Source "ChessBase"]
[SourceQuality "1"]
[TimeControl "900+10"]

1. d4 {[%emt 0:00:00]} d5 {[%emt 0:00:00]} 2. Nf3 {[%emt 0:00:00]} Nf6 {[%emt 0:00:00]} 3. Bf4 {[%emt 0:00:00]} c5 {[%emt 0:00:00]} 4. e3 {[%emt 0:00:02]} Nc6 {[%emt 0:00:00]} 5. Nbd2 {[%emt 0:00:03]} Qb6 {[%emt 0:00:02]} 6. dxc5 {[%emt 0:00:04]} Qxb2 {[%emt 0:00:02]} 7. Rb1 {[%emt 0:00:04]} Qc3 {[%emt 0:00:02]} 8. Bb5 {[%emt 0:00:03]} g6 {[%emt 0:00:02]} 9. O-O {[%emt 0:03:18]} Bg7 {[%emt 0:00:16]} 10. Ne5 {[%emt 0:00:21]} Qxc5 {[%emt 0:02:56]} 11. c4 {[%emt 0:01:21]} O-O {[%emt 0:00:52]} 12. Nb3 {[%emt 0:00:52]} Qa3 {[%emt 0:00:32]} 13. Nxc6 {[%emt 0:02:01]} bxc6 {[%emt 0:00:02]} 14. Bxc6 {[%emt 0:00:02]} Bf5 {[%emt 0:00:13]} 15. Qc1 {[%emt 0:02:40]} Qxc1 {[%emt 0:03:37]} 16. Rbxc1 {[%emt 0:00:05]} Rad8 {[%emt 0:00:10]} 17. c5 {[%emt 0:00:58]} Ne4 {[%emt 0:00:35]} 18. Nd4 {[%emt 0:01:15]} e5 {[%emt 0:05:01]} 19. Nxf5 {[%emt 0:00:04]} gxf5 {[%emt 0:00:01]} 20. Bg3 {[%emt 0:00:08]} Rc8 {[%emt 0:00:59]} 21. Bd7 {[%emt 0:00:50]} Rxc5 {[%emt 0:00:13]} 22. Bxf5 {[%emt 0:00:15]} Rxc1 {[%emt 0:00:28]} 23. Rxc1 {[%emt 0:00:02]} Nxg3 {[%emt 0:00:41]} 24. hxg3 {[%emt 0:00:02]} Rb8 {[%emt 0:00:15]} 25. Rc7 {[%emt 0:00:12]} a5 {[%emt 0:00:10]} 26. Rc5 {[%emt 0:00:22]} d4 {[%emt 0:00:23]} 27. exd4 {[%emt 0:00:09]} exd4 {[%emt 0:00:03]} 28. Rxa5 {[%emt 0:00:01]} Rb2 {[%emt 0:00:15]} 29. Ra8+ {[%emt 0:00:39]} Bf8 {[%emt 0:00:02]} 30. a4 {[%emt 0:00:15]} Kg7 {[%emt 0:00:14]} 31. a5 {[%emt 0:00:21]} Ra2 {[%emt 0:00:09]} 32. Kf1 {[%emt 0:00:36]} Bc5 {[%emt 0:00:13]} 33. a6 {[%emt 0:01:25]} d3 {[%emt 0:00:29]} 34. Bxd3 {[%emt 0:00:01]} Rxf2+ {[%emt 0:00:08]} 35. Ke1 {[%emt 0:00:03]} Rxg2 {[%emt 0:00:09]} 36. Rc8 {[%emt 0:00:09]} Bd4 {[%emt 0:00:20]} 37. Rc4 {[%emt 0:00:06]} Bf2+ {[%emt 0:00:48]} 38. Kf1 {[%emt 0:01:10]} Rxg3 {[%emt 0:00:01]} 39. Kxf2 {[%emt 0:00:01]} Rxd3 {[%emt 0:00:01]} 40. Ra4 {[%emt 0:00:01]} Rd8 {[%emt 0:00:04]} 41. a7 {[%emt 0:00:02]} Ra8 {[%emt 0:00:00]} 42. Kf3 {[%emt 0:00:03]} Kf6 {[%emt 0:00:24]} 43. Ke4 {[%emt 0:00:07]} Ke6 {[%emt 0:00:01]} 44. Ra6+ {[%emt 0:00:16]} Kd7 {[%emt 0:00:03]} 45. Kd5 {[%emt 0:00:18]} Kc7 {[%emt 0:00:03]} 46. Rf6 {[%emt 0:00:09]} Rxa7 {[%emt 0:00:07]} 47. Rxf7+ {[%emt 0:00:05]} 1/2-1/2

[Event "46th GER-ch Rapid 2020"]
[Site "Plochingen"]
[Date "2020.09.19"]
[Round "4.2"]
[White "Petkidis, Anthony"]
[Black "Neukirchner, Pascal"]
[Result "0-1"]
[ECO "B37"]
[WhiteElo "2406"]
[BlackElo "2259"]
[Annotator "ChessBase"]
[PlyCount "106"]
[EventDate "2020.09.19"]
[EventType "swiss"]
[EventCountry "GER"]
[SourceTitle "playchess.com"]
[Source "ChessBase"]
[SourceQuality "1"]
[TimeControl "900+10"]

{[%evp 0,48,19,38,72,49,29,51,27,20,75,23,23,22,22,-11,-8,4,-13,-7,-14,-21,-21,-41,-36,-37,-23,-37,1,-3,12,14,16,-8,61,70,78,77,90,66,112,105,102,57,37,37,38,20,21,32,34]} 1. e4 {[%emt 0:00:00]} c5 {[%emt 0:00:00]} 2. Nf3 {[%emt 0:00:00]} Nc6 {[%emt 0:00:00]} 3. d4 {[%emt 0:00:00]} cxd4 {[%emt 0:00:00]} 4. Nxd4 {[%emt 0:00:01]} g6 {[%emt 0:00:00]} 5. c4 {[%emt 0:00:06]} d6 {[%emt 0:00:00]} 6. Nc3 {[%emt 0:00:50]} Nf6 {[%emt 0:00:00]} 7. Nc2 {[%emt 0:00:15]} Bg7 {[%emt 0:00:02]} 8. Be2 {[%emt 0:00:04]} O-O {[%emt 0:00:02]} 9. O-O {[%emt 0:00:03]} Nd7 {[%emt 0:00:05]} 10. Bd2 {[%emt 0:00:05]} b6 {[%emt 0:00:09]} 11. Rc1 {[%emt 0:00:17]} Bb7 {[%emt 0:00:02]} 12. b3 {[%emt 0:00:13]} Nc5 {[%emt 0:00:44]} 13. f3 {[%emt 0:00:20]} Ne6 {[%emt 0:01:47]} 14. Nd5 {[%emt 0:00:42]} Ncd4 {[%emt 0:00:56]} 15. Nxd4 {[%emt 0:00:15]} Nxd4 {[%emt 0:00:55]} 16. Bg5 {[%emt 0:00:41]} Bxd5 {[%emt 0:01:14]} 17. cxd5 {[%emt 0:01:34]} Nxe2+ {[%emt 0:02:31]} 18. Qxe2 {[%emt 0:00:02]} Qd7 {[%emt 0:00:01]} 19. Rc6 {[%emt 0:00:57]} Rfc8 {[%emt 0:00:06]} 20. Rfc1 {[%emt 0:00:27]} Bd4+ {[%emt 0:00:27]} 21. Kf1 {[%emt 0:02:26]} Bc5 {[%emt 0:00:20]} 22. Qc4 {[%emt 0:02:24]} a5 {[%emt 0:02:14]} 23. Rxc8+ {[%emt 0:01:03]} Rxc8 {[%emt 0:00:16]} 24. Bh6 f6 25. h3 b5 26. Qd3 Kf7 27. Bd2 b4 28. Ke2 Rb8 29. g4 Qb5 30. Qxb5 Rxb5 31. Be3 a4 32. Bxc5 dxc5 33. Kd3 axb3 34. axb3 Ra5 35. f4 h6 36. e5 g5 37. e6+ Ke8 38. Ke4 Kd8 39. Kf5 Kc7 40. h4 gxf4 41. Kg6 Kd6 42. Kxh6 Ra3 43. Rb1 f3 44. Kg7 f2 45. h5 Rxb3 46. Rf1 Rg3 47. h6 Rxg4+ 48. Kh8 b3 49. h7 b2 50. Rb1 Rg1 51. Rxg1 fxg1=B 52. Kg8 b1=Q 53. h8=Q Qb8+ 0-1

[Event "46th GER-ch Rapid 2020"]
[Site "Plochingen"]
[Date "2020.09.19"]
[Round "4.4"]
[White "Muranyi, Karl-Jasmin"]
[Black "Schmaltz, Roland"]
[Result "1/2-1/2"]
[ECO "A14"]
[WhiteElo "2331"]
[BlackElo "2449"]
[Annotator "ChessBase"]
[PlyCount "51"]
[EventDate "2020.09.19"]
[EventType "swiss"]
[EventCountry "GER"]
[SourceTitle "playchess.com"]
[Source "ChessBase"]
[SourceQuality "1"]
[TimeControl "900+10"]

1. c4 {[%emt 0:00:00]} Nf6 {[%emt 0:00:00]} 2. Nf3 {[%emt 0:00:00]} e6 {[%emt 0:00:00]} 3. Nc3 {[%emt 0:00:08]} c5 {[%emt 0:00:17]} 4. g3 {[%emt 0:00:07]} b6 {[%emt 0:00:12]} 5. Bg2 {[%emt 0:00:02]} Bb7 {[%emt 0:00:01]} 6. O-O {[%emt 0:00:03]} Be7 {[%emt 0:00:06]} 7. b3 {[%emt 0:00:01]} O-O {[%emt 0:00:16]} 8. Bb2 {[%emt 0:00:01]} d5 {[%emt 0:00:40]} 9. cxd5 {[%emt 0:00:02]} Nxd5 {[%emt 0:00:10]} 10. Nxd5 {[%emt 0:00:01]} Bxd5 {[%emt 0:00:04]} 11. d3 {[%emt 0:00:08]} Nd7 {[%emt 0:00:16]} 12. Qc2 {[%emt 0:00:35]} Rc8 {[%emt 0:00:17]} 13. Rac1 {[%emt 0:00:14]} Bf6 {[%emt 0:00:10]} 14. Bxf6 {[%emt 0:00:23]} Nxf6 {[%emt 0:00:09]} 15. Qb2 {[%emt 0:00:08]} Qe7 {[%emt 0:00:17]} 16. Rfd1 {[%emt 0:00:21]} Rfd8 {[%emt 0:00:40]} 17. a3 {[%emt 0:00:50]} a5 {[%emt 0:00:14]} 18. Ne5 {[%emt 0:01:28]} Bxg2 {[%emt 0:01:18]} 19. Kxg2 {[%emt 0:00:02]} Qb7+ {[%emt 0:00:32]} 20. Kg1 {[%emt 0:00:12]} h5 {[%emt 0:00:16]} 21. b4 {[%emt 0:00:37]} cxb4 {[%emt 0:00:05]} 22. axb4 {[%emt 0:00:01]} a4 {[%emt 0:00:08]} 23. b5 {[%emt 0:00:01]} Ra8 {[%emt 0:00:45]} 24. Nc6 {[%emt 0:00:19]} Rd5 {[%emt 0:00:50]} 25. e4 {[%emt 0:00:24]} Rd7 {[%emt 0:00:30]} 26. Ra1 {[%emt 0:02:25]} 1/2-1/2

[Event "46th GER-ch Rapid 2020"]
[Site "Plochingen"]
[Date "2020.09.19"]
[Round "4.5"]
[White "Meissner, Felix"]
[Black "Hirneise, Jens"]
[Result "0-1"]
[ECO "C01"]
[WhiteElo "2362"]
[BlackElo "2289"]
[Annotator "ChessBase"]
[PlyCount "134"]
[EventDate "2020.09.19"]
[EventType "swiss"]
[EventCountry "GER"]
[SourceTitle "playchess.com"]
[Source "ChessBase"]
[SourceQuality "1"]
[TimeControl "900+10"]

1. e4 {[%emt 0:00:00]} e6 {[%emt 0:00:00]} 2. d4 {[%emt 0:00:00]} d5 {[%emt 0:00:00]} 3. exd5 {[%emt 0:00:00]} exd5 {[%emt 0:00:00]} 4. Bd3 {[%emt 0:00:00]} Bd6 {[%emt 0:00:21]} 5. Nf3 {[%emt 0:00:02]} Nf6 {[%emt 0:00:03]} 6. O-O {[%emt 0:00:05]} O-O {[%emt 0:00:03]} 7. Re1 {[%emt 0:00:20]} Bg4 {[%emt 0:01:12]} 8. Bg5 {[%emt 0:00:58]} Nbd7 {[%emt 0:00:18]} 9. Nbd2 {[%emt 0:00:05]} c6 {[%emt 0:00:31]} 10. Nf1 {[%emt 0:00:31]} Qc7 {[%emt 0:00:16]} 11. h3 {[%emt 0:01:03]} Bh5 {[%emt 0:00:16]} 12. Ne3 {[%emt 0:00:38]} Rae8 {[%emt 0:01:27]} 13. g4 {[%emt 0:01:49]} Bg6 {[%emt 0:00:13]} 14. Nf5 {[%emt 0:00:41]} Ne4 {[%emt 0:00:58]} 15. Bxe4 {[%emt 0:01:35]} dxe4 {[%emt 0:01:06]} 16. N3h4 {[%emt 0:00:32]} Bxf5 {[%emt 0:01:12]} 17. Nxf5 {[%emt 0:00:10]} f6 {[%emt 0:00:38]} 18. Bh4 {[%emt 0:01:05]} g6 {[%emt 0:00:52]} 19. Nxd6 {[%emt 0:00:44]} Qxd6 {[%emt 0:00:01]} 20. Bg3 {[%emt 0:00:26]} Qd5 {[%emt 0:00:06]} 21. Qd2 {[%emt 0:01:17]} f5 {[%emt 0:00:17]} 22. gxf5 {[%emt 0:01:57]} Ne5 {[%emt 0:01:39]} 23. Bxe5 {[%emt 0:01:05]} Rxe5 {[%emt 0:00:01]} 24. Qe3 {[%emt 0:01:29]} Rexf5 {[%emt 0:00:04]} 25. Qxe4 {[%emt 0:00:17]} Rg5+ {[%emt 0:00:41]} 26. Kf1 {[%emt 0:00:40]} Qc4+ {[%emt 0:02:32]} 27. Re2 {[%emt 0:00:25]} Rgf5 {[%emt 0:00:38]} 28. Kg1 {[%emt 0:00:41]} Rf4 {[%emt 0:00:24]} 29. Qe6+ {[%emt 0:00:18]} Qxe6 {[%emt 0:00:01]} 30. Rxe6 {[%emt 0:00:01]} Rxf2 {[%emt 0:01:07]} 31. Re7 {[%emt 0:00:13]} Rxc2 {[%emt 0:00:17]} 32. Rxb7 {[%emt 0:00:03]} Rf7 {[%emt 0:00:20]} 33. Rb8+ {[%emt 0:00:42]} Kg7 {[%emt 0:00:01]} 34. Re1 {[%emt 0:00:29]} Kh6 {[%emt 0:01:06]} 35. a4 {[%emt 0:00:15]} Rc4 {[%emt 0:00:22]} 36. Re6 {[%emt 0:00:11]} Rxd4 {[%emt 0:00:18]} 37. Rxc6 {[%emt 0:00:02]} Rxa4 {[%emt 0:00:02]} 38. Rc2 {[%emt 0:00:05]} Ra5 {[%emt 0:00:19]} 39. Rb3 {[%emt 0:00:10]} Rg5+ {[%emt 0:00:12]} 40. Kh2 {[%emt 0:00:02]} Ra5 {[%emt 0:00:34]} 41. Kg2 {[%emt 0:00:10]} Kh5 {[%emt 0:00:15]} 42. Rb4 {[%emt 0:00:04]} g5 {[%emt 0:00:08]} 43. Rd2 {[%emt 0:00:15]} h6 {[%emt 0:00:04]} 44. Rc2 {[%emt 0:00:26]} Rd5 {[%emt 0:00:12]} 45. Re2 {[%emt 0:00:12]} Rd3 {[%emt 0:00:19]} 46. Ra4 {[%emt 0:00:13]} Rff3 {[%emt 0:00:24]} 47. Rxa7 {[%emt 0:00:02]} Rg3+ {[%emt 0:00:01]} 48. Kf2 {[%emt 0:00:03]} Rxh3 {[%emt 0:00:08]} 49. Re6 {[%emt 0:00:23]} Rd2+ {[%emt 0:00:17]} 50. Kg1 {[%emt 0:00:01]} Rxb2 {[%emt 0:00:19]} 51. Raa6 {[%emt 0:00:10]} Kg4 {[%emt 0:00:28]} 52. Rxh6 {[%emt 0:00:23]} Rxh6 {[%emt 0:00:18]} 53. Rxh6 {[%emt 0:00:02]} Kg3 {[%emt 0:00:01]} 54. Kf1 {[%emt 0:00:05]} Rb1+ {[%emt 0:00:07]} 55. Ke2 {[%emt 0:00:01]} g4 {[%emt 0:00:01]} 56. Rf6 {[%emt 0:00:06]} Kh3 {[%emt 0:00:14]} 57. Rh6+ {[%emt 0:00:29]} Kg2 {[%emt 0:00:01]} 58. Rf6 {[%emt 0:00:06]} g3 {[%emt 0:00:04]} 59. Rf8 {[%emt 0:00:06]} Kg1 {[%emt 0:00:37]} 60. Rh8 {[%emt 0:00:22]} Rf1 {[%emt 0:00:18]} 61. Rh7 {[%emt 0:00:10]} g2 {[%emt 0:00:12]} 62. Rh6 {[%emt 0:00:01]} Rf5 {[%emt 0:00:08]} 63. Rh8 {[%emt 0:00:07]} Re5+ {[%emt 0:00:05]} 64. Kd2 {[%emt 0:00:06]} Kf2 {[%emt 0:00:06]} 65. Rf8+ {[%emt 0:00:05]} Kg3 {[%emt 0:00:17]} 66. Rg8+ {[%emt 0:00:01]} Kf3 {[%emt 0:00:07]} 67. Rf8+ {[%emt 0:00:02]} Kg4 {[%emt 0:00:03]} 0-1